bitfinex/quotes_SOLUSD_20260113
["timestamp","ask_amount","ask_price","bid_price","bid_amount"]
[1768318663096,0.57986952,142.97,142.9,8.73088915]
[1768318663292,0.57986952,142.97,142.89,0.71554579]
[1768318663293,8.73088915,142.95,142.89,0.71554579]
[1768318663597,0.57986952,142.97,142.9,0.71554579]
[1768318663779,8.73088915,142.95,142.9,9.44643494]
[1768318664497,8.73088915,142.94,142.9,0.71554579]
[1768318664699,0.57986952,142.97,142.91,13.47554579]
[1768318665001,8.73088915,142.98,142.94,0.71554579]
[1768318665301,8.73088915,142.98,142.91,12.76]
[1768318665302,8.73088915,142.98,142.95,12.76]
[1768318665489,0.099,143.0,142.95,12.76]
[1768318665900,8.73088915,142.99,142.95,12.76]
[1768318666202,8.82988915,143.01,142.95,8.73088915]
[1768318666405,8.82988915,143.01,142.96,12.76]
[1768318666602,9.31075867,143.03,142.98,8.73088915]
[1768318666805,8.73088915,143.02,142.97,9.44643494]
[1768318667701,0.57986952,143.03,142.97,9.44643494]
[1768318667905,0.57986952,143.05,142.99,8.73088915]
[1768318668091,0.57986952,143.05,143.0,12.76]
[1768318668292,8.73088915,143.03,143.0,12.76]
[1768318668806,8.73088915,143.04,143.0,12.76]
[1768318669011,8.73088915,143.03,143.0,12.76]
[1768318669302,0.099,143.04,143.0,12.76]
[1768318669479,8.73088915,143.03,143.0,12.18013048]
[1768318669683,8.73088915,143.02,142.95,0.71554579]
[1768318670008,8.73088915,143.0,142.92,0.71554579]
[1768318670189,8.73088915,143.04,142.92,0.71554579]
[1768318670190,8.73088915,142.98,142.93,12.76]
[1768318670504,8.73088915,142.99,142.93,22.20643494]
[1768318670712,8.73088915,143.0,142.95,0.71554579]
[1768318670898,8.73088915,143.0,142.96,0.71554579]
[1768318671211,6.6801107,143.08,142.98,0.71554579]
[1768318671395,8.73088915,143.01,142.97,12.76]
[1768318672208,6.99198569,143.03,142.97,12.76]
[1768318672209,24.47106923,143.03,142.97,12.76]
[1768318672409,8.73088915,143.0,142.97,12.76]
[1768318673010,8.73088915,143.01,142.97,12.76]
[1768318673216,8.73088915,143.04,142.97,12.76]
[1768318673385,24.46696959,143.05,142.97,12.76]
[1768318673588,8.73088915,143.02,142.97,22.20643494]
[1768318674102,8.73088915,143.02,142.98,0.71554579]
[1768318674305,6.99056274,143.05,142.98,0.71554579]
[1768318674614,8.73088915,143.02,142.98,0.71554579]
[1768318674783,8.73088915,143.01,142.98,13.47554579]
[1768318675185,6.99056274,143.05,142.98,12.76]
[1768318675385,41.62111182,143.1,142.99,0.71554579]
[1768318675585,8.73088915,143.03,142.99,0.71554579]
[1768318675841,8.73088915,143.02,142.99,0.71554579]
[1768318676100,8.73088915,143.03,142.99,0.71554579]
[1768318676302,8.73088915,143.04,142.99,9.44643494]
[1768318676495,8.73088915,143.04,143.0,0.71554579]
[1768318677794,27.82581115,143.1,143.0,0.71554579]
[1768318678091,8.73088915,143.05,143.0,9.44643494]
[1768318678282,8.73088915,143.04,143.0,0.71554579]
[1768318678488,8.73088915,143.03,143.0,0.71554579]
[1768318679214,24.46030583,143.09,143.0,0.71554579]
[1768318679420,8.73088915,143.01,142.97,12.76]
[1768318679716,24.46030583,143.09,142.97,12.76]
[1768318679717,8.73088915,143.0,142.97,12.76]
[1768318679930,24.46030583,143.09,142.97,12.76]
[1768318680095,8.73088915,143.01,142.97,12.76]
[1768318680413,8.73088915,143.04,142.97,12.76]
[1768318680589,8.73088915,142.99,142.97,12.76]
[1768318681286,8.73088915,142.98,142.91,9.44643494]
[1768318681488,65.21585493,143.09,142.95,0.71554579]
[1768318681683,6.6801107,143.06,142.95,0.71554579]
[1768318681912,8.73088915,143.04,142.95,0.71554579]
[1768318682086,6.6801107,143.06,142.95,0.71554579]
[1768318682087,17.47565534,143.06,142.97,0.71554579]
[1768318682288,8.73088915,143.01,142.97,0.71554579]
[1768318683112,8.73088915,143.0,142.97,0.71554579]
[1768318683913,8.73088915,143.04,142.96,12.76]
[1768318684097,8.73088915,142.99,142.96,12.76]
[1768318684412,8.73088915,142.98,142.96,12.76]
[1768318684911,8.73088915,143.04,142.97,0.70108897]
[1768318685111,17.47455875,143.07,142.97,0.70108897]
[1768318685112,8.73088915,143.01,142.97,0.70108897]
[1768318685309,8.73088915,143.0,142.97,0.70108897]
[1768318685507,8.73088915,142.99,142.97,0.70108897]
[1768318685706,8.73088915,142.99,142.96,12.76]
[1768318686110,8.73088915,143.04,142.97,0.70108897]
[1768318686316,8.73088915,143.01,142.97,0.70108897]
[1768318686505,6.98958551,143.07,142.97,9.43197812]
[1768318686701,8.73088915,143.02,142.98,0.70108897]
[1768318687023,8.73088915,143.01,142.98,0.70108897]
[1768318687509,6.98958551,143.07,142.98,0.70108897]
[1768318687714,103.4,143.08,142.99,9.43197812]
[1768318687888,6.98860856,143.09,143.0,21.49088915]
[1768318688092,8.73088915,143.05,143.01,0.70108897]
[1768318688293,6.98826203,143.1,143.02,0.70108897]
[1768318688524,8.73088915,143.07,143.03,0.70108897]
[1768318688714,8.73088915,143.08,143.04,0.70108897]
[1768318689219,6.98714365,143.12,143.05,0.70108897]
[1768318689516,8.73088915,143.09,143.05,0.70108897]
[1768318690208,215.38583701,143.17,143.06,0.70108897]
[1768318690399,8.73088915,143.1,143.06,0.70108897]
[1768318690601,45.33327385,143.16,143.06,0.70108897]
[1768318690802,8.73088915,143.1,143.06,0.70108897]
[1768318691725,8.73088915,143.09,143.06,0.70108897]
[1768318692222,8.73088915,143.07,143.04,0.70108897]
[1768318692428,8.73088915,143.06,143.04,13.46108897]
[1768318692595,8.73088915,143.07,143.05,0.70108897]
[1768318692920,8.73088915,143.08,143.05,0.70108897]
[1768318693127,8.73088915,143.06,143.05,0.70108897]
[1768318693424,8.73088915,143.08,143.05,0.70108897]
[1768318693829,8.73088915,143.09,143.07,0.70108897]
[1768318694124,8.73088915,143.09,143.07,0.64108897]
[1768318694309,8.73088915,143.09,142.97,8.73088915]
[1768318694310,0.72455069,143.07,142.97,8.73088915]
[1768318694509,0.72455069,143.07,142.95,30.24777416]
[1768318694510,8.73088915,142.99,142.95,12.76]
[1768318694821,8.73088915,142.96,142.92,12.76]
[1768318695129,8.73088915,142.95,142.89,36.49088915]
[1768318695298,8.73088915,142.95,142.89,27.76]
[1768318695500,8.73088915,142.92,142.89,12.76]
[1768318695811,8.73088915,142.93,142.89,12.76]
[1768318696120,8.73088915,142.92,142.86,28.49042135]
[1768318696301,8.73088915,142.93,142.88,0.7119076]
[1768318696900,8.73088915,142.93,142.89,0.7119076]
[1768318697724,8.73088915,142.92,142.89,0.7119076]
[1768318698105,8.73088915,142.93,142.89,0.7119076]
[1768318698342,8.73088915,142.91,142.87,7.71116379]
[1768318698514,8.73088915,142.91,142.82,15.0]
[1768318698515,8.73088915,142.89,142.85,0.7119076]
[1768318698821,8.73088915,142.89,142.86,0.7119076]
[1768318699528,8.73088915,142.88,142.84,0.7119076]
[1768318700225,0.69882755,142.91,142.84,0.7119076]
[1768318700400,8.73088915,142.89,142.85,0.7119076]
[1768318701027,8.73088915,142.88,142.82,0.7119076]
[1768318701214,8.73088915,142.88,142.83,0.7119076]
[1768318701903,8.73088915,142.87,142.83,0.7119076]
[1768318703018,9.4297167,142.87,142.81,13.4719076]
[1768318703210,8.73088915,142.86,142.81,12.76]
[1768318703409,9.4297167,142.86,142.81,21.49088915]
[1768318703610,9.4297167,142.86,142.81,12.76]
[1768318703922,0.69882755,142.89,142.81,12.76]
[1768318704127,9.4297167,142.86,142.81,12.76]
[1768318704305,9.4297167,142.85,142.8,0.2]
[1768318704501,8.73088915,142.84,142.8,0.2]
[1768318704817,12.76,142.94,142.82,0.7119076]
[1768318704818,0.69882755,142.89,142.82,0.7119076]
[1768318705017,0.69882755,142.89,142.83,0.7119076]
[1768318705323,8.73088915,142.86,142.81,9.44279675]
[1768318705514,8.73088915,142.86,142.81,0.7119076]
[1768318705515,8.73088915,142.85,142.81,0.7119076]
[1768318705702,8.73088915,142.85,142.8,0.2]
[1768318705903,0.69882755,142.86,142.8,9.64279675]
[1768318706103,0.69882755,142.86,142.8,7.91466067]
[1768318706340,8.73088915,142.85,142.8,0.9119076]
[1768318706511,9.4297167,142.85,142.8,0.9119076]
[1768318707029,26.66846792,143.03,142.81,0.7119076]
[1768318707030,0.69882755,142.87,142.81,0.7119076]
[1768318707405,8.73088915,142.85,142.81,0.7119076]
[1768318707916,9.4297167,142.87,142.82,0.7119076]
[1768318708317,8.73088915,142.86,142.82,0.7119076]
[1768318708516,8.73088915,142.85,142.82,0.7119076]
[1768318710841,9.4297167,142.86,142.8,16.6454504]
[1768318711429,8.73088915,142.85,142.8,16.6454504]
[1768318711928,0.69882755,142.86,142.8,16.6454504]
[1768318712115,0.69882755,142.89,142.82,0.7119076]
[1768318712317,8.73088915,142.86,142.81,8.73088915]
[1768318712533,9.4297167,142.86,142.81,0.7119076]
[1768318712833,9.4297167,142.86,142.81,9.44279675]
[1768318713035,9.4297167,142.86,142.81,0.7119076]
[1768318713433,8.73088915,142.85,142.81,0.7119076]
[1768318713728,0.69882755,142.86,142.81,7.71403673]
[1768318713933,8.73088915,142.85,142.8,8.93088915]
[1768318714121,0.69882755,142.85,142.8,0.9119076]
[1768318714513,8.73088915,142.85,142.81,7.71405767]
[1768318714817,8.73088915,142.85,142.81,0.7119076]
[1768318715140,9.39352252,142.83,142.8,12.96]
[1768318715307,6.04148526,142.83,142.8,12.96]
[1768318715633,0.66263337,142.85,142.8,0.2]
[1768318715849,0.66263337,142.87,142.81,0.70920153]
[1768318716013,5.37885189,142.85,142.81,0.70920153]
[1768318716831,0.66263337,142.88,142.82,0.70920153]
[1768318717036,0.66263337,142.86,142.8,0.90920153]
[1768318717249,5.37885189,142.85,142.8,7.91154116]
[1768318717420,5.37885189,142.84,142.8,7.91154116]
[1768318717822,0.66263337,142.91,142.81,0.70920153]
[1768318718018,5.37885189,142.85,142.82,7.00181522]
[1768318718447,5.37885189,142.86,142.82,7.00181522]
[1768318718645,0.66263337,142.89,142.84,0.70920153]
[1768318719143,0.66263337,142.89,142.84,7.7098808]
[1768318719144,5.37885189,142.88,142.84,7.7098808]
[1768318719448,5.37885189,142.86,142.83,12.76]
[1768318719749,5.57766589,142.87,142.83,12.76]
[1768318720549,17.49023106,142.94,142.83,13.46920153]
[1768318720550,0.66263337,142.89,142.83,13.46920153]
[1768318720729,5.37885189,142.88,142.83,20.470378]
[1768318720932,5.37885189,142.88,142.84,7.70997456]
[1768318721147,0.66263337,142.95,142.85,0.70920153]
[1768318721451,6.04148526,142.91,142.85,0.70920153]
[1768318721635,6.04148526,142.91,142.86,6.08805342]
[1768318721822,5.37885189,142.91,142.87,13.46920153]
[1768318722339,0.66263337,142.93,142.87,13.46920153]
[1768318722544,5.37885189,142.9,142.87,13.46920153]
[1768318722719,0.66263337,142.92,142.87,13.46920153]
[1768318722925,5.37885189,142.9,142.87,13.46920153]
[1768318723245,6.04148526,142.89,142.87,12.76]
[1768318723419,0.66263337,142.87,142.84,12.76]
[1768318723620,5.37885189,142.89,142.84,13.46920153]
[1768318723936,5.37885189,142.89,142.85,0.70920153]
[1768318724138,5.37885189,142.89,142.85,7.70945998]
[1768318724334,6.04148526,142.89,142.84,18.13885189]
[1768318724538,5.37885189,142.87,142.84,12.76]
[1768318725034,5.37885189,142.89,142.85,7.70916311]
[1768318725235,5.37885189,142.89,142.86,0.70920153]
[1768318725441,5.37885189,142.96,142.86,0.70920153]
[1768318725629,5.37885189,142.9,142.87,12.76]
[1768318725953,6.04148526,142.9,142.87,12.76]
[1768318726140,5.37885189,142.9,142.87,12.76]
[1768318726853,6.04148526,142.9,142.87,12.76]
[1768318727037,0.66263337,142.92,142.87,13.46920153]
[1768318727226,5.37885189,142.91,142.87,13.46920153]
[1768318727427,5.37885189,142.92,142.88,0.70920153]
[1768318727628,5.37885189,142.91,142.88,0.70920153]
[1768318728541,5.37885189,142.91,142.87,12.76]
[1768318728742,0.66263337,142.92,142.87,12.76]
[1768318729037,5.37885189,142.91,142.87,12.76]
[1768318729444,6.04148526,142.9,142.87,12.76]
[1768318729956,0.66263337,142.9,142.87,12.76]
[1768318730154,5.37885189,142.91,142.87,12.76]
[1768318730749,0.66263337,142.92,142.87,13.46920153]
[1768318730954,5.37885189,142.91,142.87,13.46920153]
[1768318731139,6.04148526,142.91,142.87,13.46920153]
[1768318731658,6.04148526,142.96,142.9,6.08805342]
[1768318731856,0.66263337,142.98,142.93,6.08805342]
[1768318732059,6.04148526,142.99,142.94,18.84805342]
[1768318732253,0.66263337,142.98,142.94,18.13885189]
[1768318732450,5.37885189,142.99,142.94,18.13885189]
[1768318732451,5.37885189,142.99,142.94,18.84805342]
[1768318732763,6.04148526,143.0,142.95,6.08805342]
[1768318732931,0.66263337,142.99,142.94,12.76]
[1768318733136,6.04148526,142.98,142.94,12.76]
[1768318733655,6.04148526,142.98,142.94,13.46920153]
[1768318733656,5.37885189,142.98,142.94,13.46920153]
[1768318734456,5.37885189,142.99,142.94,13.46920153]
[1768318734630,0.66263337,143.0,142.94,18.84805342]
[1768318734833,5.37885189,142.99,142.95,0.70920153]
[1768318735051,5.37885189,142.97,142.92,0.70920153]
[1768318735253,5.37885189,142.97,142.93,0.70920153]
[1768318735456,0.66263337,143.0,142.94,18.84805342]
[1768318735663,0.66263337,143.02,142.97,0.70920153]
[1768318735960,5.37885189,143.01,142.97,0.70920153]
[1768318736160,0.66263337,143.02,142.97,0.70920153]
[1768318736350,0.66263337,143.02,142.97,13.46920153]
[1768318736542,5.37885189,143.01,142.97,13.46920153]
[1768318737233,5.37885189,143.0,142.97,12.76]
[1768318737434,0.66263337,143.01,142.97,12.76]
[1768318737659,0.66263337,143.01,142.97,18.84805342]
[1768318737849,6.04148526,143.01,142.97,13.46920153]
[1768318738245,5.37885189,143.0,142.97,13.46920153]
[1768318738445,0.66263337,143.01,142.97,13.46920153]
[1768318738661,6.04148526,143.01,142.97,13.46920153]
[1768318738960,6.04148526,143.01,142.97,12.76]
[1768318739165,6.04148526,142.98,142.93,0.70920153]
[1768318739370,6.04148526,142.98,142.93,13.46920153]
[1768318739536,5.37885189,142.99,142.95,0.70920153]
[1768318739864,0.56263337,143.0,142.95,0.70920153]
[1768318740057,5.37885189,142.99,142.95,0.70920153]
[1768318741569,5.37885189,142.99,142.94,0.70920153]
[1768318741866,0.099,143.02,142.96,0.70920153]
[1768318742038,5.47785189,143.02,142.97,0.70920153]
[1768318742773,5.37885189,143.01,142.97,0.70920153]
[1768318743390,0.56263337,143.05,142.99,6.08805342]
[1768318743545,0.55799703,143.06,143.0,6.08805342]
[1768318743746,5.37885189,143.05,143.0,6.08805342]
[1768318743944,0.55799703,143.06,143.0,6.08805342]
[1768318744160,5.37885189,143.05,143.0,6.08805342]
[1768318744357,0.55799703,143.06,143.0,0.70920153]
[1768318744637,5.37885189,143.03,142.99,12.76]
[1768318744838,5.37885189,143.0,142.99,12.20986433]
[1768318745043,5.37885189,143.0,142.94,0.68924525]
[1768318745244,5.37885189,142.98,142.94,0.68924525]
[1768318745454,5.37885189,143.04,142.94,0.68924525]
[1768318745667,24.47039082,143.03,142.94,0.68924525]
[1768318746267,5.37885189,142.98,142.94,0.68924525]
[1768318746655,5.37885189,142.98,142.93,12.76]
[1768318746955,5.37885189,142.95,142.92,0.68924525]
[1768318747163,5.37885189,142.95,142.91,0.68924525]
[1768318747368,12.76,143.01,142.91,0.68924525]
[1768318747369,5.37885189,142.96,142.92,0.68924525]
[1768318747753,103.4,143.02,142.94,0.68924525]
[1768318747952,5.37885189,142.99,142.95,0.68924525]
[1768318748161,5.37885189,142.98,142.95,0.68924525]
[1768318748460,5.37885189,142.96,142.92,13.44924525]
[1768318748852,24.47050082,143.03,142.92,13.44924525]
[1768318749062,5.37885189,142.96,142.92,13.44924525]
[1768318749260,5.37885189,142.95,142.92,13.44924525]
[1768318749955,6.99405819,142.98,142.92,13.44924525]
[1768318750157,5.37885189,142.96,142.92,13.44924525]
[1768318750908,24.47227275,143.02,142.94,0.68924525]
[1768318751052,5.37885189,142.99,142.95,0.68924525]
[1768318751556,5.37885189,142.97,142.92,6.06809714]
[1768318751756,5.37885189,142.96,142.92,0.68924525]
[1768318752160,6.99320242,143.0,142.92,0.68924525]
[1768318752360,5.37885189,142.97,142.93,0.68924525]
[1768318753276,5.37885189,142.95,142.91,0.68924525]
[1768318753468,5.37885189,142.93,142.9,12.76]
[1768318753852,5.37885189,142.92,142.9,12.76]
[1768318754162,5.37885189,142.92,142.89,0.68924525]
[1768318754364,5.37885189,142.93,142.89,0.68924525]
[1768318754572,6.99515552,142.96,142.89,0.68924525]
[1768318755062,5.37885189,142.93,142.89,0.68924525]
[1768318755381,5.37885189,142.94,142.9,0.68924525]
[1768318755558,5.37885189,142.93,142.88,0.68924525]
[1768318755758,5.37885189,142.92,142.86,0.68924525]
[1768318755958,5.37885189,142.92,142.87,5.37885189]
[1768318756185,5.37885189,142.92,142.87,6.06075205]
[1768318756370,5.37885189,142.92,142.87,0.68190016]
[1768318756581,5.37885189,142.92,142.87,6.06075205]
[1768318756768,5.37885189,142.93,142.88,6.06075205]
[1768318757504,5.37885189,142.93,142.89,0.68190016]
[1768318759075,5.37885189,142.92,142.87,6.06075205]
[1768318759278,5.37885189,142.93,142.88,6.06075205]
[1768318759593,5.37885189,142.93,142.88,0.68190016]
[1768318760685,5.37885189,142.92,142.88,0.68190016]
[1768318761687,5.37885189,142.92,142.86,18.82075205]
[1768318761885,5.37885189,142.96,142.86,13.44190016]
[1768318761886,5.37885189,142.91,142.86,13.44190016]
[1768318762403,5.37885189,142.91,142.86,18.82075205]
[1768318762810,19.75731505,142.92,142.83,0.68190016]
[1768318762972,19.75731505,142.92,142.83,6.06075205]
[1768318763301,5.37885189,142.89,142.84,0.68190016]
[1768318763501,17.48920869,142.95,142.86,0.68190016]
[1768318763701,5.37885189,142.9,142.86,0.68190016]
[1768318764203,5.37885189,142.88,142.84,0.68190016]
[1768318764974,5.37885189,142.89,142.85,0.68190016]
[1768318765189,5.37885189,142.9,142.86,0.68190016]
[1768318766396,22.86651457,142.96,142.87,0.68190016]
[1768318766595,5.37885189,142.91,142.87,0.68190016]
[1768318766896,17.485594,142.98,142.88,0.68190016]
[1768318767199,5.37885189,142.93,142.88,0.68190016]
[1768318768698,5.37885189,142.93,142.89,0.68190016]
[1768318769393,6.99558277,142.95,142.89,0.68190016]
[1768318769698,5.37885189,142.93,142.89,0.68190016]
[1768318769901,110.39361907,142.99,142.91,6.06075205]
[1768318770115,5.37885189,142.96,142.92,0.68190016]
[1768318770599,6.99398517,142.98,142.9,13.44190016]
[1768318770776,6.99398517,142.98,142.9,18.82075205]
[1768318770977,5.37885189,142.96,142.92,0.68190016]
[1768318771392,5.37885189,142.95,142.92,0.68190016]
[1768318771583,24.4789481,142.98,142.92,0.68190016]
[1768318771783,5.37885189,142.95,142.9,18.82075205]
[1768318772208,5.37885189,142.95,142.9,13.44190016]
[1768318773704,5.37885189,142.94,142.9,13.44190016]
[1768318774008,5.37885189,142.94,142.9,0.68190016]
[1768318774900,5.37885189,142.92,142.87,6.07588207]
[1768318775298,5.37885189,142.92,142.87,0.69703018]
[1768318775678,5.37885189,142.91,142.87,0.69703018]
[1768318775928,24.48594298,142.94,142.87,6.07588207]
[1768318776087,5.37885189,142.95,142.91,0.69703018]
[1768318777291,8.72633502,142.95,142.91,0.69703018]
[1768318777488,8.72633502,142.94,142.91,0.69703018]
[1768318777701,8.72633502,142.94,142.9,12.76]
[1768318778007,8.72633502,142.93,142.88,8.72633502]
[1768318778196,24.48258618,142.96,142.88,13.45703018]
[1768318778505,8.72633502,142.93,142.88,13.45703018]
[1768318779187,6.99559058,142.95,142.88,22.1833652]
[1768318779388,8.72633502,142.94,142.89,0.69703018]
[1768318780305,8.72633502,142.92,142.88,12.76]
[1768318780511,8.72633502,142.9,142.85,0.69703018]
[1768318780806,37.24585218,142.94,142.85,0.69703018]
[1768318781184,8.72633502,142.9,142.85,0.69703018]
[1768318781389,8.72633502,142.89,142.85,0.69703018]
[1768318782286,8.72633502,142.87,142.81,0.69703018]
[1768318782486,24.49621786,142.88,142.81,0.69703018]
[1768318782698,8.72633502,142.85,142.81,0.69703018]
[1768318782895,24.49621786,142.88,142.81,0.69703018]
[1768318783409,8.72633502,142.86,142.82,0.69703018]
[1768318783621,8.72633502,142.85,142.82,0.69703018]
[1768318783988,8.72633502,142.85,142.8,0.89703018]
[1768318784212,8.72633502,142.85,142.81,0.69703018]
[1768318786491,24.49265219,142.9,142.81,0.69703018]
[1768318786691,8.72633502,142.85,142.81,0.69703018]
[1768318787599,8.72633502,142.83,142.8,0.2]
[1768318787800,6.99937005,142.87,142.78,0.2]
[1768318787801,8.72633502,142.81,142.78,0.2]
[1768318788107,8.72633502,142.79,142.78,0.2]
[1768318788310,24.49855626,142.87,142.78,0.2]
[1768318788311,8.72633502,142.8,142.78,0.2]
[1768318788510,8.72633502,142.79,142.75,0.2]
[1768318788704,8.72633502,142.78,142.75,0.89703018]
[1768318789088,12.76,142.85,142.75,0.2]
[1768318789492,8.72633502,142.79,142.76,0.69703018]
[1768318789693,8.72633502,142.8,142.76,0.69703018]
[1768318789917,7.00161393,142.83,142.76,0.69703018]
[1768318790135,8.72633502,142.79,142.76,0.69703018]
[1768318790335,7.00161393,142.83,142.76,0.69703018]
[1768318790626,8.72633502,142.79,142.76,0.69703018]
[1768318791116,8.72633502,142.78,142.75,0.2]
[1768318791290,17.50119755,142.85,142.76,0.69703018]
[1768318791493,7.0008401,142.84,142.76,0.69703018]
[1768318791722,8.72633502,142.79,142.76,0.69703018]
[1768318792900,8.72633502,142.8,142.76,0.69703018]
[1768318793727,8.72633502,142.79,142.76,0.69703018]
[1768318794231,8.72633502,142.8,142.76,0.69703018]
[1768318794605,7.00199249,142.82,142.76,0.69703018]
[1768318794606,8.72633502,142.79,142.76,0.69703018]
[1768318794800,8.72633502,142.79,142.75,0.2]
[1768318795106,8.72633502,142.77,142.75,0.2]
[1768318795302,8.72633502,142.78,142.75,0.89703018]
[1768318795502,8.72633502,142.78,142.75,0.2]
[1768318795704,8.72633502,142.78,142.75,0.89703018]
[1768318796203,12.76,142.83,142.75,0.89703018]
[1768318796407,8.72633502,142.78,142.75,0.89703018]
[1768318797608,12.76,142.83,142.76,0.69703018]
[1768318797807,8.72633502,142.8,142.76,0.69703018]
[1768318798311,24.18038974,142.86,142.76,0.69703018]
[1768318798626,8.72633502,142.82,142.78,0.69703018]
[1768318799609,7.00035001,142.85,142.78,0.69703018]
[1768318799928,8.72633502,142.82,142.78,0.69703018]
[1768318800108,8.72633502,142.82,142.77,8.72633502]
[1768318800316,103.4,142.87,142.8,0.69703018]
[1768318800510,8.72633502,142.83,142.8,0.69703018]
[1768318800721,8.72633502,142.82,142.8,0.69703018]
[1768318801225,24.49967958,142.86,142.8,0.69703018]
[1768318801431,7.00002958,142.86,142.8,0.69703018]
[1768318801726,24.49316224,142.9,142.83,0.69703018]
[1768318801902,37.27316224,142.9,142.83,0.69703018]
[1768318802101,8.72633502,142.87,142.83,0.69703018]
[1768318803105,37.27316224,142.9,142.83,0.69703018]
[1768318803309,8.72633502,142.87,142.83,0.69703018]
[1768318803528,8.72633502,142.88,142.84,0.69703018]
[1768318803724,8.72633502,142.89,142.84,9.4233652]
[1768318804022,8.72633502,142.9,142.86,0.69703018]
[1768318804227,12.78,142.94,142.86,0.69703018]
[1768318804430,8.72633502,142.9,142.86,0.69703018]
[1768318804609,30.27027512,142.94,142.86,0.69703018]
[1768318804932,28.99661014,142.94,142.84,0.6601933]
[1768318805132,8.72633502,142.87,142.83,0.6601933]
[1768318805503,8.72633502,142.88,142.83,9.38652832]
[1768318805703,28.99661014,142.94,142.83,9.38652832]
[1768318806027,35.99255249,142.94,142.84,0.6601933]
[1768318806218,8.72633502,142.89,142.85,0.6601933]
[1768318806604,8.72633502,142.88,142.85,0.6601933]
[1768318807013,8.72633502,142.89,142.85,0.6601933]
[1768318807211,8.72633502,142.88,142.85,0.6601933]
[1768318807506,70.97226425,142.94,142.85,0.6601933]
[1768318807813,8.72633502,142.86,142.81,21.50633502]
[1768318808017,8.72633502,142.86,142.81,9.38652832]
[1768318808218,8.72633502,142.86,142.81,0.6601933]
[1768318808411,8.72633502,142.86,142.82,0.6601933]
[1768318809726,17.4932047,142.92,142.85,0.6601933]
[1768318809901,8.72633502,142.88,142.85,0.6601933]
[1768318810106,8.72633502,142.88,142.84,0.6601933]
[1768318811730,8.72633502,142.86,142.84,0.6601933]
[1768318811932,8.72633502,142.87,142.84,0.6601933]
[1768318812315,8.72633502,142.85,142.84,0.6601933]
[1768318812707,8.72633502,142.85,142.84,0.60424143]
[1768318813415,7.06808421,142.87,142.84,0.60424143]
[1768318813611,8.72633502,142.85,142.84,0.60424143]
[1768318814441,8.72633502,142.85,142.84,0.54424143]
[1768318815521,6.99991399,142.86,142.84,0.54424143]
[1768318815713,8.72633502,142.85,142.84,0.54424143]
[1768318815914,8.79478459,142.87,142.84,0.54424143]
[1768318816128,0.06844957,142.87,142.84,0.54424143]
[1768318816316,8.79478459,142.87,142.84,0.54424143]
[1768318816837,7.06791893,142.87,142.84,0.54424143]
[1768318817037,8.72633502,142.85,142.84,0.54424143]
[1768318817430,8.72633502,142.85,142.8,8.72633502]
[1768318817825,8.72633502,142.86,142.8,8.72633502]
[1768318818033,8.72633502,142.85,142.8,8.72633502]
[1768318818242,8.72633502,142.85,142.79,12.78]
[1768318818458,7.0776446,142.96,142.84,15.72701227]
[1768318818618,8.72633502,142.96,142.86,8.72633502]
[1768318818819,8.72633502,142.93,142.87,8.72633502]
[1768318819030,8.72633502,142.93,142.86,6.9997245]
[1768318819226,8.72633502,142.93,142.88,8.72633502]
[1768318819429,8.72633502,142.93,142.86,6.9997245]
[1768318819627,8.72633502,142.93,142.88,8.72633502]
[1768318819833,8.72633502,142.93,142.85,12.78]
[1768318819834,6.99509942,142.96,142.87,6.99931648]
[1768318820039,6.99509942,142.96,142.85,27.78]
[1768318820040,8.72633502,142.94,142.88,8.72633502]
[1768318820239,8.72633502,142.94,142.86,6.99965827]
[1768318820444,8.72633502,142.93,142.88,8.72633502]
[1768318820833,8.72633502,142.92,142.86,8.72633502]
[1768318821443,8.72633502,142.92,142.87,8.72633502]
[1768318822036,15.72298845,142.93,142.87,12.76]
[1768318822356,8.72633502,142.92,142.87,21.48633502]
[1768318822724,8.72633502,142.92,142.87,12.76]
[1768318822925,8.72633502,142.92,142.87,21.48633502]
[1768318823243,8.72633502,142.93,142.87,12.76]
[1768318823442,8.72633502,142.92,142.87,12.76]
[1768318824325,8.72633502,142.92,142.83,7.00094951]
[1768318824539,8.72633502,142.91,142.86,12.76]
[1768318824738,8.72633502,142.91,142.86,21.48633502]
[1768318825252,6.99643181,142.93,142.86,21.48633502]
[1768318825452,8.72633502,142.91,142.86,21.48633502]
[1768318825650,8.72633502,142.91,142.86,12.76]
[1768318826027,8.72633502,142.89,142.86,12.76]
[1768318826448,8.72633502,142.87,142.79,7.00316187]
[1768318826652,8.72633502,142.85,142.8,21.48633502]
[1768318826844,8.72633502,142.85,142.8,12.76]
[1768318827156,8.72633502,142.85,142.8,21.48633502]
[1768318827357,6.99950258,142.87,142.8,21.48633502]
[1768318827664,6.99908467,142.88,142.81,8.72633502]
[1768318827951,6.99908467,142.88,142.78,8.72633502]